fUSD/lending_fUSD_20260702
["ID","MTS","AMOUNT","RATE_DAILY","PERIOD"]
[426866829,1782968856000,-487.0,0.0003704,120]
[426866825,1782968856000,-269.72353996,0.0003704,120]
[426866827,1782968856000,-487.0,0.0003704,120]
[426866824,1782968856000,-487.0,0.0003704,120]
[426866822,1782968856000,-487.0,0.0003704,120]
[426866828,1782968856000,-350.42834394,0.0003704,120]
[426866821,1782968856000,-500.0,0.0003704,120]
[426866819,1782968856000,-500.0,0.0003704,120]
[426866820,1782968856000,-500.0,0.0003704,120]
[426866818,1782968856000,-500.0,0.0003704,120]
[426866816,1782968856000,-515.54681947,0.0003704,120]
[426866817,1782968856000,-354.99611436,0.0003704,120]
[426866823,1782968856000,-500.0,0.0003704,120]
[426866840,1782968857000,-544.09670788,0.0003704,120]
[426866841,1782968857000,-487.0,0.0003704,120]
[426866839,1782968857000,-487.0,0.0003704,120]
[426866837,1782968857000,-247.49343742,0.0003704,120]
[426866838,1782968857000,-487.0,0.0003704,120]
[426866836,1782968857000,-226.90375193,0.0003704,120]
[426866831,1782968857000,-487.0,0.0003704,120]
[426866834,1782968857000,-487.0,0.0003704,120]
[426866833,1782968857000,-487.0,0.0003704,120]
[426866832,1782968857000,-487.0,0.0003704,120]
[426866830,1782968857000,-245.8573596,0.0003704,120]
[426866842,1782968857000,-345.56864102,0.0003704,120]
[426866835,1782968857000,-487.0,0.0003704,120]
[426866843,1782968857000,-335.19999103,0.0003704,120]
[426866854,1782968857000,-1253.11480021,0.0003704,120]
[426866845,1782968857000,-487.0,0.0003704,120]
[426866858,1782968857000,-500.0,0.0003704,120]
[426866856,1782968857000,-500.0,0.0003704,120]
[426866857,1782968857000,-500.0,0.0003704,120]
[426866855,1782968857000,-500.0,0.0003704,120]
[426866853,1782968857000,-500.0,0.0003704,120]
[426866851,1782968857000,-460.43,0.0003704,120]
[426866844,1782968857000,-487.0,0.0003704,120]
[426866850,1782968857000,-305.26613351,0.0003704,120]
[426866848,1782968857000,-487.0,0.0003704,120]
[426866849,1782968857000,-487.0,0.0003704,120]
[426866846,1782968857000,-487.0,0.0003704,120]
[426866847,1782968857000,-487.0,0.0003704,120]
[426866852,1782968857000,-500.0,0.0003704,120]
[426866871,1782968858000,-500.0,0.0003704,120]
[426866870,1782968858000,-284.82517068,0.0003704,120]
[426866869,1782968858000,-339.23181355,0.0003704,120]
[426866867,1782968858000,-309.20441803,0.0003704,120]
[426866868,1782968858000,-500.0,0.0003704,120]
[426866866,1782968858000,-500.0,0.0003704,120]
[426866864,1782968858000,-500.0,0.0003704,120]
[426866863,1782968858000,-500.0,0.0003704,120]
[426866862,1782968858000,-500.0,0.0003704,120]
[426866861,1782968858000,-500.0,0.0003704,120]
[426866860,1782968858000,-500.0,0.0003704,120]
[426866872,1782968858000,-500.0,0.0003704,120]
[426866865,1782968858000,-500.0,0.0003704,120]
[426866859,1782968858000,-362.83189504,0.0003704,120]
[426866874,1782968858000,-631.20154442,0.0003704,120]
[426866875,1782968858000,-500.0,0.0003704,120]
[426866873,1782968858000,-500.0,0.0003704,120]
[426866887,1782968858000,-500.0,0.0003704,120]
[426866885,1782968858000,-431.98908104,0.0003704,120]
[426866886,1782968858000,-500.0,0.0003704,120]
[426866882,1782968858000,-555.75391789,0.0003704,120]
[426866883,1782968858000,-500.0,0.0003704,120]
[426866884,1782968858000,-500.0,0.0003704,120]
[426866879,1782968858000,-500.0,0.0003704,120]
[426866878,1782968858000,-582.87580174,0.0003704,120]
[426866880,1782968858000,-201.26798897,0.0003704,120]
[426866877,1782968858000,-216.86239344,0.0003704,120]
[426866876,1782968858000,-191.46448645,0.0003704,120]
[426866881,1782968858000,-312.03138736,0.0003704,120]
[426866895,1782968859000,-456.10225748,0.0003704,120]
[426866898,1782968859000,-500.0,0.0003704,120]
[426866896,1782968859000,-500.0,0.0003704,120]
[426866897,1782968859000,-500.0,0.0003704,120]
[426866894,1782968859000,-500.0,0.0003704,120]
[426866899,1782968859000,-500.0,0.0003704,120]
[426866892,1782968859000,-500.0,0.0003704,120]
[426866891,1782968859000,-500.0,0.0003704,120]
[426866890,1782968859000,-500.0,0.0003704,120]
[426866888,1782968859000,-500.0,0.0003704,120]
[426866889,1782968859000,-335.6667702,0.0003704,120]
[426866893,1782968859000,-394.69230414,0.0003704,120]
[426866900,1782968859000,-500.0,0.0003704,120]
[426866908,1782968859000,-500.0,0.0003704,120]
[426866904,1782968859000,-500.0,0.0003704,120]
[426866914,1782968859000,-180.97261249,0.0003704,120]
[426866913,1782968859000,-309.27389938,0.0003704,120]
[426866911,1782968859000,-500.0,0.0003704,120]
[426866912,1782968859000,-500.0,0.0003704,120]
[426866915,1782968859000,-249.61145815,0.0003704,120]
[426866910,1782968859000,-500.0,0.0003704,120]
[426866901,1782968859000,-500.0,0.0003704,120]
[426866907,1782968859000,-254.66958037,0.0003704,120]
[426866905,1782968859000,-500.0,0.0003704,120]
[426866906,1782968859000,-500.0,0.0003704,120]
[426866903,1782968859000,-500.0,0.0003704,120]
[426866902,1782968859000,-500.0,0.0003704,120]
[426866909,1782968859000,-500.0,0.0003704,120]
[426866929,1782968860000,-375.92849378,0.0003704,120]
[426866925,1782968860000,-864.02,0.0003704,120]
[426866926,1782968860000,-202.58360781,0.0003704,120]
[426866923,1782968860000,-500.0,0.0003704,120]
[426866924,1782968860000,-864.02,0.0003704,120]
[426866920,1782968860000,-351.32279084,0.0003704,120]
[426866922,1782968860000,-864.02,0.0003704,120]
[426866928,1782968860000,-394.09271822,0.0003704,120]
[426866918,1782968860000,-206.7655897,0.0003704,120]
[426866919,1782968860000,-864.02,0.0003704,120]
[426866917,1782968860000,-249.83915786,0.0003704,120]
[426866916,1782968860000,-196.59861491,0.0003704,120]
[426866921,1782968860000,-864.02,0.0003704,120]
[426866930,1782968860000,-203.29896899,0.0003704,120]
[426866927,1782968860000,-422.31816331,0.0003704,120]
[426866947,1782968860000,-864.99,0.0003704,120]
[426866931,1782968860000,-284.41597131,0.0003704,120]
[426866946,1782968860000,-864.99,0.0003704,120]
[426866944,1782968860000,-864.99,0.0003704,120]
[426866945,1782968860000,-864.99,0.0003704,120]
[426866943,1782968860000,-864.99,0.0003704,120]
[426866941,1782968860000,-864.99,0.0003704,120]
[426866942,1782968860000,-620.52576467,0.0003704,120]
[426866932,1782968860000,-557.0,0.0003704,120]
[426866940,1782968860000,-864.99,0.0003704,120]
[426866937,1782968860000,-500.0,0.0003704,120]
[426866938,1782968860000,-235.69232138,0.0003704,120]
[426866936,1782968860000,-500.0,0.0003704,120]
[426866934,1782968860000,-246.50750278,0.0003704,120]
[426866935,1782968860000,-253.55390914,0.0003704,120]
[426866933,1782968860000,-189.78758685,0.0003704,120]
[426866939,1782968860000,-864.99,0.0003704,120]
[426866960,1782968861000,-864.99,0.0003704,120]
[426866959,1782968861000,-864.99,0.0003704,120]
[426866957,1782968861000,-864.99,0.0003704,120]
[426866958,1782968861000,-864.99,0.0003704,120]
[426866956,1782968861000,-864.99,0.0003704,120]
[426866954,1782968861000,-864.99,0.0003704,120]
[426866950,1782968861000,-500.0,0.0003704,120]
[426866953,1782968861000,-864.99,0.0003704,120]
[426866952,1782968861000,-405.51071639,0.0003704,120]
[426866951,1782968861000,-864.99,0.0003704,120]
[426866949,1782968861000,-864.99,0.0003704,120]
[426866948,1782968861000,-864.99,0.0003704,120]
[426866955,1782968861000,-864.99,0.0003704,120]
[426866961,1782968861000,-864.99,0.0003704,120]
[426866963,1782968861000,-432.90777542,0.0003704,120]
[426866964,1782968861000,-864.99,0.0003704,120]
[426866976,1782968861000,-500.0,0.0003704,120]
[426866975,1782968861000,-634.41884642,0.0003704,120]
[426866973,1782968861000,-232.27813012,0.0003704,120]
[426866974,1782968861000,-267.07861795,0.0003704,120]
[426866972,1782968861000,-564.41743867,0.0003704,120]
[426866970,1782968861000,-232.8563027,0.0003704,120]
[426866977,1782968861000,-500.0,0.0003704,120]
[426866967,1782968861000,-865.10899312,0.0003704,120]
[426866971,1782968861000,-500.0,0.0003704,120]
[426866965,1782968861000,-864.99,0.0003704,120]
[426866962,1782968861000,-864.99,0.0003704,120]
[426866968,1782968861000,-500.0,0.0003704,120]
[426866969,1782968861000,-500.0,0.0003704,120]
[426866966,1782968861000,-205.59179778,0.0003704,120]
[426866990,1782968862000,-203.812949,0.0003704,120]
[426866978,1782968862000,-500.0,0.0003704,120]
[426866979,1782968862000,-226.60812181,0.0003704,120]
[426866980,1782968862000,-500.0,0.0003704,120]
[426866982,1782968862000,-342.8870326,0.0003704,120]
[426866983,1782968862000,-239.22911951,0.0003704,120]
[426866984,1782968862000,-500.0,0.0003704,120]
[426866986,1782968862000,-195.06698081,0.0003704,120]
[426866985,1782968862000,-500.0,0.0003704,120]
[426866987,1782968862000,-500.0,0.0003704,120]
[426866989,1782968862000,-1199.89183227,0.0003704,120]
[426866988,1782968862000,-520.32721378,0.0003704,120]
[426866981,1782968862000,-551.36672341,0.0003704,120]
[426866992,1782968862000,-254.92222208,0.0003704,120]
[426866993,1782968862000,-551.21788946,0.0003704,120]
[426866991,1782968862000,-176.07141336,0.0003704,120]
[426867004,1782968862000,-582.47,0.0003704,120]
[426867005,1782968862000,-582.47,0.0003704,120]
[426867002,1782968862000,-582.47,0.0003704,120]
[426867001,1782968862000,-582.47,0.0003704,120]
[426866999,1782968862000,-454.41615377,0.0003704,120]
[426867003,1782968862000,-582.47,0.0003704,120]
[426866998,1782968862000,-500.0,0.0003704,120]
[426866997,1782968862000,-585.74861247,0.0003704,120]
[426866996,1782968862000,-500.0,0.0003704,120]
[426866995,1782968862000,-500.0,0.0003704,120]
[426866994,1782968862000,-244.74674083,0.0003704,120]
[426867000,1782968862000,-582.47,0.0003704,120]
[426867015,1782968863000,-322.68651552,0.0003704,120]
[426867019,1782968863000,-582.47,0.0003704,120]
[426867018,1782968863000,-582.47,0.0003704,120]
[426867016,1782968863000,-582.47,0.0003704,120]
[426867017,1782968863000,-600.35006224,0.0003704,120]
[426867014,1782968863000,-582.47,0.0003704,120]
[426867006,1782968863000,-582.47,0.0003704,120]
[426867011,1782968863000,-582.47,0.0003704,120]
[426867010,1782968863000,-358.45262562,0.0003704,120]
[426867009,1782968863000,-582.47,0.0003704,120]
[426867007,1782968863000,-582.47,0.0003704,120]
[426867008,1782968863000,-582.47,0.0003704,120]
[426867021,1782968863000,-582.47,0.0003704,120]
[426867012,1782968863000,-582.47,0.0003704,120]
[426867020,1782968863000,-407.28059917,0.0003704,120]
[426867013,1782968863000,-582.47,0.0003704,120]
[426867024,1782968863000,-582.47,0.0003704,120]
[426867037,1782968863000,-500.0,0.0003704,120]
[426867035,1782968863000,-500.0,0.0003704,120]
[426867033,1782968863000,-290.07282701,0.0003704,120]
[426867034,1782968863000,-544.52064962,0.0003704,120]
[426867032,1782968863000,-200.39264306,0.0003704,120]
[426867029,1782968863000,-582.67998845,0.0003704,120]
[426867031,1782968863000,-223.20453504,0.0003704,120]
[426867022,1782968863000,-582.47,0.0003704,120]
[426867036,1782968863000,-500.0,0.0003704,120]
[426867028,1782968863000,-582.47,0.0003704,120]
[426867026,1782968863000,-222.21892635,0.0003704,120]
[426867025,1782968863000,-582.47,0.0003704,120]
[426867027,1782968863000,-582.47,0.0003704,120]
[426867023,1782968863000,-170.57141076,0.0003704,120]
[426867030,1782968863000,-289.00538942,0.0003704,120]
[426867050,1782968864000,-646.12758893,0.0003704,120]
[426867048,1782968864000,-500.0,0.0003704,120]
[426867047,1782968864000,-500.0,0.0003704,120]
[426867049,1782968864000,-500.0,0.0003704,120]
[426867045,1782968864000,-500.0,0.0003704,120]
[426867046,1782968864000,-500.0,0.0003704,120]
[426867043,1782968864000,-500.0,0.0003704,120]
[426867042,1782968864000,-500.0,0.0003704,120]
[426867041,1782968864000,-500.0,0.0003704,120]
[426867039,1782968864000,-500.0,0.0003704,120]
[426867040,1782968864000,-196.64517282,0.0003704,120]
[426867038,1782968864000,-500.0,0.0003704,120]
[426867051,1782968864000,-500.0,0.0003704,120]
[426867044,1782968864000,-500.0,0.0003704,120]
[426867052,1782968864000,-500.0550863,0.0003704,120]
[426867053,1782968864000,-500.0,0.0003704,120]
[426867054,1782968864000,-176.52319999,0.0003704,120]
[426867067,1782968864000,-742.77,0.0003704,120]
[426867065,1782968864000,-742.77,0.0003704,120]
[426867066,1782968864000,-640.77,0.0003704,120]
[426867063,1782968864000,-742.77,0.0003704,120]
[426867064,1782968864000,-640.77,0.0003704,120]
[426867062,1782968864000,-640.77,0.0003704,120]
[426867068,1782968864000,-500.0,0.0003704,120]
[426867059,1782968864000,-577.36388719,0.0003704,120]
[426867060,1782968864000,-192.54658715,0.0003704,120]
[426867057,1782968864000,-195.77545903,0.0003704,120]
[426867056,1782968864000,-500.0,0.0003704,120]
[426867058,1782968864000,-239.12832848,0.0003704,120]
[426867055,1782968864000,-500.0,0.0003704,120]
[426867061,1782968864000,-226.86553294,0.0003704,120]
[426867080,1782968865000,-742.77,0.0003704,120]
[426867078,1782968865000,-640.77,0.0003704,120]
[426867079,1782968865000,-640.77,0.0003704,120]
[426867077,1782968865000,-640.77,0.0003704,120]
[426867075,1782968865000,-742.77,0.0003704,120]
[426867076,1782968865000,-640.77,0.0003704,120]
[426867073,1782968865000,-219.22386161,0.0003704,120]
[426867072,1782968865000,-742.77,0.0003704,120]
[426867071,1782968865000,-159.32217908,0.0003704,120]
[426867070,1782968865000,-742.77,0.0003704,120]
[426867069,1782968865000,-640.77,0.0003704,120]
[426867082,1782968865000,-742.77,0.0003704,120]
[426867074,1782968865000,-548.02355475,0.0003704,120]
[426867083,1782968865000,-640.77,0.0003704,120]
[426867084,1782968865000,-640.77,0.0003704,120]
[426867098,1782968865000,-500.0,0.0003704,120]
[426867097,1782968865000,-742.77,0.0003704,120]
[426867095,1782968865000,-742.77,0.0003704,120]
[426867096,1782968865000,-592.76,0.0003704,120]
[426867093,1782968865000,-592.76,0.0003704,120]
[426867092,1782968865000,-640.77,0.0003704,120]
[426867094,1782968865000,-500.0,0.0003704,120]
[426867081,1782968865000,-640.77,0.0003704,120]
[426867089,1782968865000,-742.77,0.0003704,120]
[426867090,1782968865000,-592.76,0.0003704,120]
[426867086,1782968865000,-742.77,0.0003704,120]
[426867088,1782968865000,-640.77,0.0003704,120]
[426867087,1782968865000,-640.77,0.0003704,120]
[426867085,1782968865000,-742.77,0.0003704,120]
[426867091,1782968865000,-742.77,0.0003704,120]
[426867112,1782968866000,-592.76,0.0003704,120]
[426867110,1782968866000,-742.77,0.0003704,120]
[426867108,1782968866000,-742.77,0.0003704,120]
[426867109,1782968866000,-592.76,0.0003704,120]
[426867107,1782968866000,-592.76,0.0003704,120]
[426867105,1782968866000,-742.77,0.0003704,120]
[426867103,1782968866000,-640.77,0.0003704,120]
[426867104,1782968866000,-589.3140352,0.0003704,120]
[426867102,1782968866000,-742.77,0.0003704,120]
[426867101,1782968866000,-500.0,0.0003704,120]
[426867100,1782968866000,-640.77,0.0003704,120]
[426867099,1782968866000,-592.76,0.0003704,120]
[426867111,1782968866000,-640.77,0.0003704,120]
[426867106,1782968866000,-640.77,0.0003704,120]
[426867114,1782968866000,-640.77,0.0003704,120]
[426867117,1782968866000,-742.77,0.0003704,120]
[426867115,1782968866000,-742.77,0.0003704,120]
[426867127,1782968866000,-592.76,0.0003704,120]
[426867129,1782968866000,-500.0,0.0003704,120]
[426867128,1782968866000,-640.77,0.0003704,120]
[426867126,1782968866000,-742.94854136,0.0003704,120]
[426867125,1782968866000,-640.77,0.0003704,120]
[426867113,1782968866000,-742.77,0.0003704,120]
[426867123,1782968866000,-742.77,0.0003704,120]
[426867124,1782968866000,-592.76,0.0003704,120]
[426867120,1782968866000,-742.77,0.0003704,120]
[426867121,1782968866000,-592.76,0.0003704,120]
[426867119,1782968866000,-592.76,0.0003704,120]
[426867118,1782968866000,-640.77,0.0003704,120]
[426867116,1782968866000,-592.76,0.0003704,120]
[426867122,1782968866000,-640.77,0.0003704,120]
[426867136,1782968867000,-500.0,0.0003704,120]
[426867141,1782968867000,-592.76,0.0003704,120]
[426867139,1782968867000,-592.76,0.0003704,120]
[426867140,1782968867000,-592.76,0.0003704,120]
[426867138,1782968867000,-500.0,0.0003704,120]
[426867143,1782968867000,-592.76,0.0003704,120]
[426867135,1782968867000,-592.76,0.0003704,120]
[426867133,1782968867000,-592.76,0.0003704,120]
[426867134,1782968867000,-500.0,0.0003704,120]
[426867131,1782968867000,-640.96286527,0.0003704,120]
[426867132,1782968867000,-500.0,0.0003704,120]
[426867137,1782968867000,-592.76,0.0003704,120]
[426867142,1782968867000,-500.0,0.0003704,120]
[426867130,1782968867000,-592.76,0.0003704,120]
[426867146,1782968867000,-592.76,0.0003704,120]
[426867157,1782968867000,-615.45669262,0.0003704,120]
[426867156,1782968867000,-500.0,0.0003704,120]
[426867158,1782968867000,-500.0,0.0003704,120]
[426867155,1782968867000,-500.0,0.0003704,120]
[426867154,1782968867000,-307.39797312,0.0003704,120]
[426867153,1782968867000,-627.41922077,0.0003704,120]
[426867144,1782968867000,-500.0,0.0003704,120]
[426867152,1782968867000,-582.61347037,0.0003704,120]
[426867150,1782968867000,-592.84441577,0.0003704,120]
[426867149,1782968867000,-592.76,0.0003704,120]
[426867145,1782968867000,-500.0,0.0003704,120]
[426867148,1782968867000,-579.19232212,0.0003704,120]
[426867147,1782968867000,-592.76,0.0003704,120]
[426867151,1782968867000,-177.40532232,0.0003704,120]
[426867170,1782968868000,-333.58033631,0.0003704,120]
[426867171,1782968868000,-179.01953176,0.0003704,120]
[426867169,1782968868000,-337.3816418,0.0003704,120]
[426867167,1782968868000,-500.0,0.0003704,120]
[426867168,1782968868000,-326.06776478,0.0003704,120]
[426867166,1782968868000,-500.0,0.0003704,120]
[426867163,1782968868000,-500.0,0.0003704,120]
[426867165,1782968868000,-500.0,0.0003704,120]
[426867162,1782968868000,-500.0,0.0003704,120]
[426867161,1782968868000,-500.0,0.0003704,120]
[426867160,1782968868000,-500.0,0.0003704,120]
[426867159,1782968868000,-500.0,0.0003704,120]
[426867173,1782968868000,-2169.85,0.0003704,120]
[426867164,1782968868000,-500.0,0.0003704,120]
[426867172,1782968868000,-2169.85,0.0003704,120]
[426867174,1782968868000,-491.6679177,0.0003704,120]
[426867175,1782968868000,-2169.85,0.0003704,120]
[426867188,1782968868000,-172.97811116,0.0003704,120]
[426867187,1782968868000,-500.0,0.0003704,120]
[426867184,1782968868000,-2169.85,0.0003704,120]
[426867186,1782968868000,-2169.85,0.0003704,120]
[426867185,1782968868000,-500.0,0.0003704,120]
[426867182,1782968868000,-309.20787023,0.0003704,120]
[426867189,1782968868000,-2169.85,0.0003704,120]
[426867181,1782968868000,-2169.85,0.0003704,120]
[426867179,1782968868000,-2169.85,0.0003704,120]
[426867178,1782968868000,-2169.85,0.0003704,120]
[426867180,1782968868000,-500.0,0.0003704,120]
[426867177,1782968868000,-2169.85,0.0003704,120]
[426867176,1782968868000,-2169.85,0.0003704,120]
[426867183,1782968868000,-500.0,0.0003704,120]
[426867202,1782968869000,-416.28049326,0.0003704,120]
[426867200,1782968869000,-500.0,0.0003704,120]
[426867201,1782968869000,-2169.85,0.0003704,120]
[426867199,1782968869000,-2169.85,0.0003704,120]
[426867198,1782968869000,-500.0,0.0003704,120]
[426867197,1782968869000,-2169.85,0.0003704,120]
[426867194,1782968869000,-2169.85,0.0003704,120]
[426867193,1782968869000,-500.0,0.0003704,120]
[426867195,1782968869000,-500.0,0.0003704,120]
[426867191,1782968869000,-200.29000228,0.0003704,120]
[426867192,1782968869000,-2169.85,0.0003704,120]
[426867203,1782968869000,-152.94122685,0.0003704,120]
[426867196,1782968869000,-500.0,0.0003704,120]
[426867204,1782968869000,-500.0,0.0003704,120]
[426867190,1782968869000,-500.0,0.0003704,120]
[426867206,1782968869000,-500.0,0.0003704,120]
[426867218,1782968869000,-392.71896286,0.0003704,120]
[426867219,1782968869000,-2169.85,0.0003704,120]
[426867217,1782968869000,-353.6473138,0.0003704,120]
[426867215,1782968869000,-500.0,0.0003704,120]
[426867216,1782968869000,-2169.85,0.0003704,120]
[426867212,1782968869000,-500.0,0.0003704,120]
[426867205,1782968869000,-2169.85,0.0003704,120]
[426867214,1782968869000,-205.16276985,0.0003704,120]
[426867211,1782968869000,-500.0,0.0003704,120]
[426867209,1782968869000,-500.0,0.0003704,120]
[426867210,1782968869000,-2169.85,0.0003704,120]
[426867208,1782968869000,-500.0,0.0003704,120]
[426867207,1782968869000,-2169.85,0.0003704,120]
[426867213,1782968869000,-2169.85,0.0003704,120]
[426867232,1782968870000,-500.0,0.0003704,120]
[426867233,1782968870000,-500.0,0.0003704,120]
[426867230,1782968870000,-500.0,0.0003704,120]
[426867229,1782968870000,-500.0,0.0003704,120]
[426867228,1782968870000,-250.20028527,0.0003704,120]
[426867226,1782968870000,-204.56685846,0.0003704,120]
[426867225,1782968870000,-264.79727055,0.0003704,120]
[426867224,1782968870000,-641.30395138,0.0003704,120]
[426867223,1782968870000,-273.32920519,0.0003704,120]
[426867222,1782968870000,-500.0,0.0003704,120]
[426867221,1782968870000,-2169.99260125,0.0003704,120]
[426867231,1782968870000,-500.0,0.0003704,120]
[426867227,1782968870000,-500.0,0.0003704,120]
[426867235,1782968870000,-267.65949604,0.0003704,120]
[426867220,1782968870000,-2169.85,0.0003704,120]
[426867234,1782968870000,-500.0,0.0003704,120]
[426867250,1782968870000,-331.99732891,0.0003704,120]
[426867248,1782968870000,-172.30516909,0.0003704,120]
[426867247,1782968870000,-1037.6,0.0003704,120]
[426867246,1782968870000,-500.0,0.0003704,120]
[426867245,1782968870000,-1037.6,0.0003704,120]
[426867243,1782968870000,-1037.6,0.0003704,120]
[426867249,1782968870000,-500.0,0.0003704,120]
[426867242,1782968870000,-500.0,0.0003704,120]
[426867244,1782968870000,-500.0,0.0003704,120]
[426867238,1782968870000,-500.0,0.0003704,120]
[426867237,1782968870000,-500.0,0.0003704,120]
[426867236,1782968870000,-188.99956159,0.0003704,120]
[426867241,1782968870000,-1037.6,0.0003704,120]
[426867240,1782968870000,-500.0,0.0003704,120]
[426867239,1782968870000,-500.0,0.0003704,120]
[426867263,1782968871000,-1037.6,0.0003704,120]
[426867261,1782968871000,-312.79959699,0.0003704,120]
[426867262,1782968871000,-412.18129571,0.0003704,120]
[426867260,1782968871000,-1037.6,0.0003704,120]
[426867258,1782968871000,-1037.6,0.0003704,120]
[426867259,1782968871000,-1037.6,0.0003704,120]
[426867257,1782968871000,-1037.6,0.0003704,120]
[426867255,1782968871000,-1037.6,0.0003704,120]
[426867254,1782968871000,-1037.6,0.0003704,120]
[426867252,1782968871000,-1037.6,0.0003704,120]
[426867251,1782968871000,-157.45991753,0.0003704,120]
[426867265,1782968871000,-500.0,0.0003704,120]
[426867256,1782968871000,-1037.6,0.0003704,120]
[426867253,1782968871000,-1037.6,0.0003704,120]
[426867264,1782968871000,-1037.6,0.0003704,120]
[426867266,1782968871000,-1037.6,0.0003704,120]
[426867267,1782968871000,-500.0,0.0003704,120]
[426867279,1782968871000,-1037.6,0.0003704,120]
[426867278,1782968871000,-647.81674267,0.0003704,120]
[426867275,1782968871000,-500.0,0.0003704,120]
[426867276,1782968871000,-500.0,0.0003704,120]
[426867273,1782968871000,-500.0,0.0003704,120]
[426867277,1782968871000,-1037.6,0.0003704,120]
[426867272,1782968871000,-500.0,0.0003704,120]
[426867271,1782968871000,-1037.6,0.0003704,120]
[426867269,1782968871000,-500.0,0.0003704,120]
[426867270,1782968871000,-500.0,0.0003704,120]
[426867268,1782968871000,-1037.6,0.0003704,120]
[426867274,1782968871000,-1037.6,0.0003704,120]
[426867288,1782968872000,-1226.5,0.0003704,120]
[426867293,1782968872000,-211.82227999,0.0003704,120]
[426867290,1782968872000,-614.62712855,0.0003704,120]
[426867289,1782968872000,-1226.5,0.0003704,120]
[426867287,1782968872000,-1226.5,0.0003704,120]
[426867286,1782968872000,-482.95412222,0.0003704,120]
[426867292,1782968872000,-500.0,0.0003704,120]
[426867285,1782968872000,-1037.64279355,0.0003704,120]
[426867283,1782968872000,-1037.6,0.0003704,120]
[426867281,1782968872000,-500.0,0.0003704,120]
[426867282,1782968872000,-500.0,0.0003704,120]
[426867280,1782968872000,-1037.6,0.0003704,120]
[426867284,1782968872000,-500.0,0.0003704,120]
[426867295,1782968872000,-1226.5,0.0003704,120]
[426867291,1782968872000,-500.0,0.0003704,120]
[426867296,1782968872000,-500.0,0.0003704,120]
[426867294,1782968872000,-478.4631364,0.0003704,120]
[426867309,1782968872000,-309.04681147,0.0003704,120]
[426867307,1782968872000,-500.0,0.0003704,120]
[426867306,1782968872000,-500.0,0.0003704,120]
[426867305,1782968872000,-500.0,0.0003704,120]
[426867304,1782968872000,-500.0,0.0003704,120]
[426867303,1782968872000,-321.92524225,0.0003704,120]
[426867308,1782968872000,-500.0,0.0003704,120]
[426867301,1782968872000,-428.88186383,0.0003704,120]
[426867300,1782968872000,-500.0,0.0003704,120]
[426867297,1782968872000,-500.0,0.0003704,120]
[426867310,1782968872000,-500.0,0.0003704,120]
[426867299,1782968872000,-500.0,0.0003704,120]
[426867298,1782968872000,-2102.57,0.0003704,120]
[426867302,1782968872000,-500.0,0.0003704,120]
[426867320,1782968873000,-517.01536523,0.0003704,120]
[426867319,1782968873000,-190.67682465,0.0003704,120]
[426867321,1782968873000,-1129.36,0.0003704,120]
[426867316,1782968873000,-500.0,0.0003704,120]
[426867317,1782968873000,-175.78851463,0.0003704,120]
[426867315,1782968873000,-500.0,0.0003704,120]